Cogmind - Beta 14 @@@ ROGUE MODE // 2025.01.11 @ 15:57:00 Player: hoganstuff Result: Destroyed by S-10 Pest with Light Assault Rifle Performance ------------- Evolutions (0) 0 Regions Visited (2) 400 Robots Destroyed (14) 70 Value Destroyed (239) 239 Prototype IDs (0) 0 Alien Tech Used (0) 0 Bonus (0) 0 TOTAL SCORE: 709 Bonus ------- None Cogmind --------- Core Integrity 0/250 Matter 248/300 Energy 160/160 System Corruption 1% Temperature Cool (83) Movement Walking (190) Ox1 Location -10/Mines Parts ------- > --- POWER (1) -------- Light Nuclear Core > --- PROPULSION (2) --- Aluminum Leg Carbon-fiber Leg > --- UTILITY (2) ------ Large Storage Unit System Shield > --- WEAPON (2) ------- Light Assault Rifle Slug Cannon > --- INVENTORY (15) --- Nuclear Core Aluminum Leg Aluminum Leg Aluminum Leg Heat Sink Small Storage Unit Medium Storage Unit Compact Matter Pod (118) Weight Redist. System Sensor Array Signal Interpreter Advanced Targeting Computer Small Laser Grenade Launcher Mining Laser Peak State ------------ > --- POWER ------------ Light Nuclear Core > --- PROPULSION ------- Aluminum Leg Carbon-fiber Leg > --- UTILITY ---------- Large Storage Unit System Shield > --- WEAPON ----------- Light Assault Rifle Slug Cannon > --- INVENTORY -------- Nuclear Core Aluminum Leg Aluminum Leg Aluminum Leg Heat Sink Small Storage Unit Medium Storage Unit Compact Matter Pod Weight Redist. System Sensor Array Signal Interpreter Advanced Targeting Computer Small Laser Grenade Launcher Mining Laser [Rating: 18] Favorites ----------- Power Light Nuclear Core Engine Light Ion Engine Power Core Light Nuclear Core Propulsion Aluminum Leg Leg Aluminum Leg Utility Large Storage Unit Device Weight Redist. System Storage Large Storage Unit Hackware System Shield Weapon Light Assault Rifle Energy Gun Small Laser Ballistic Gun Light Assault Rifle Ballistic Cannon Slug Cannon Build | -11 -10 -10 ------- Run | Yrd Mat Min Slots Evolved . | . . . Power . | . . . Propulsion . | . . . Utility . | . . . Weapon . | . . . Parts Attached 22 | 6 12 4 Power 4 | 1 3 . Engine 2 | 1 1 . Core 2 | . 2 . Reactor . | . . . Propulsion 5 | 2 2 1 Treads . | . . . Leg 5 | 2 2 1 Wheel . | . . . Hover . | . . . Flight . | . . . Utility 6 | 1 4 1 Device 2 | . 2 . Storage 3 | 1 2 . Processor . | . . . Hackware 1 | . . 1 Protection . | . . . Artifact . | . . . Weapon 7 | 2 3 2 Energy Gun 3 | . 2 1 Energy Cannon . | . . . Ballistic Gun 3 | 2 1 . Ballistic Cannon 1 | . . 1 Launcher . | . . . Special Weapon . | . . . Impact Weapon . | . . . Slashing Weapon . | . . . Piercing Weapon . | . . . Special Melee Weapon . | . . . Unidentified Prototypes . | . . . Parts Lost 4 | . 4 . Power 1 | . 1 . Propulsion . | . . . Utility . | . . . Weapon 3 | . 3 . Highest Loss Streak 2 | . 2 . To Critical Strikes 1 | . 1 . Average Slot Usage (%) 95 | . 93 100 Engine 3 | . 4 . Core 10 | . 8 14 Leg 28 | . 28 28 Device 7 | . 9 1 Storage 14 | . 14 14 Hackware 3 | . . 12 Energy Gun 6 | . 4 12 Ballistic Gun 20 | . 22 14 Peak Build Rating 18 | 6 11 18 Average Rating 10 | 4 8 14 On Entrance 5 | . 6 10 Naked Turns . | . . . Heaviest Build 33 | 10 27 33 Greatest Support 26 | 20 26 26 Greatest Overweight (x) 2 | 2 1 1 Average Overweight (x) . | . . 1 Largest Inventory Capacity 15 | 8 15 15 Average Capacity 12 | 7 11 15 Most Carried 15 | 2 12 15 Average Carried 8 | 1 7 14 Final Capacity 15 | 8 15 15 Final Carried 15 | 2 12 15 Class Distribution -------------------- 70% | Scavenger-Mutant 29% | Mutant Dominant Class ---------------- Scavenger-Mutant | -10/Materials Scavenger-Mutant | -10/Mines Resources | -11 -10 -10 ----------- Run | Yrd Mat Min Matter Collected 574 | 260 173 141 Remotely . | . . . Salvage Created 382 | . 350 32 Parts 34 | . 31 3 Haulers Intercepted 1 | . 1 . Recyclers Shooed . | . . . Parts Field Recycled . | . . . Retrieved Matter . | . . . Parts Self-Destructed . | . . . Prevented . | . . . Kills | -11 -10 -10 ------- Run | Yrd Mat Min Combat Hostiles Destroyed 8 | . 7 1 Guns 8 | . 7 1 Classes Destroyed 5 | . 5 . Worker 3 | . 2 1 Hauler 1 | . 1 . Watcher 2 | . 2 . Swarmer 4 | . 3 1 Grunt 4 | . 4 . Best Kill Streak 5 | . 5 2 Combat Bots Only 5 | . 5 1 Max Kills in Single Turn 1 | . 1 1 Gunslinging . | . . . Exploded . | . . . Melee . | . . . Uniques/NPCs Destroyed . | . . . Combat | -11 -10 -10 -------- Run | Yrd Mat Min Hostile Shots Fired 125 | . 82 43 Missed 33 | . 20 13 Damage Taken 1036 | . 693 343 Core 253 | . 148 105 Absorbed by Shields . | . . . Regen/Repaired (Parts) 45 | . 45 . Core Remaining (%) 100 | 100 . . Volleys Fired 53 | . 47 6 Largest 2 | . 2 2 Hottest 68 | . 60 68 Shots Fired 101 | . 89 12 Gun 95 | . 89 6 Cannon 6 | . . 6 Launcher . | . . . Special . | . . . Kinetic 84 | . 72 12 Thermal 7 | . 7 . Explosive . | . . . Electromagnetic 10 | . 10 . Robot Hit Streak 9 | . 9 1 Robot Miss Streak 6 | . 6 4 Penetration Max . | . . . Secondary Targets 2 | . 2 . Max Gunslinging Chain 1 | . 1 . Shots Hit Robots 60 | . 58 2 Core Hits 27 | . 25 2 Critical Kills . | . . . Critical Parts Destroyed . | . . . Critical Strikes . | . . . Melee Attacks . | . . . Impact . | . . . Slashing . | . . . Piercing . | . . . Sneak Attacks . | . . . Combat Hostiles . | . . . Follow-up Attacks . | . . . Damage Inflicted 674 | . 592 82 Guns 582 | . 574 8 Cannons 64 | . . 64 Explosions . | . . . Melee . | . . . Ramming 28 | . 18 10 Kinetic 477 | . 405 72 Thermal 66 | . 66 . Explosive . | . . . Electromagnetic 103 | . 103 . Impact . | . . . Slashing . | . . . Piercing . | . . . Highest Corruption 1 | . 1 1 Average Corruption 1 | . 1 1 Corruption Purged . | . . . Corruption Blocked . | . . . Effects 5 | . 3 2 Message Errors 3 | . 1 2 Matter Fused 1 | . 1 . Energy Discharges 1 | . 1 . Overload Shots . | . . . Overflow Damage . | . . . Projectiles . | . . . Explosions . | . . . Melee . | . . . Knockbacks . | . . . Impact . | . . . Kinetic . | . . . Secondary . | . . . Self-Inflicted Damage . | . . . Shots . | . . . Rammed . | . . . Targets Rammed 9 | . 7 2 Kicked 9 | . 7 2 Crushed . | . . . Highest Temperature 138 | . 138 92 Average Temperature 36 | . 35 41 Received Heat Transfer 222 | . 192 30 Siege Activations . | . . . Robots Corrupted . | . . . Combat Hostiles . | . . . Parts Fried 2 | . 2 . Impact Corruptions . | . . . Robots Melted . | . . . Combat Hostiles . | . . . Parts Melted . | . . . Heat Transferred 150 | . 150 . Parts Sabotaged . | . . . Parts Stolen . | . . . Parts Stripped . | . . . Power Chain Reactions . | . . . Alert | -11 -10 -10 ------- Run | Yrd Mat Min Peak Influence 234 | . 234 42 Initial 26 | . . 26 Average 62 | . 81 19 Maximum Alert Level 1 | . 1 . Low Security (%) 86 | 100 80 100 Level 1 13 | . 19 . Level 2 . | . . . Level 3 . | . . . Level 4 . | . . . Level 5 . | . . . High Security . | . . . Max Security . | . . . Squads Dispatched 2 | . 1 1 Investigation 1 | . . 1 Extermination . | . . . Reinforcement 1 | . 1 . Assault . | . . . Garrison . | . . . Intercept . | . . . Searches Triggered . | . . . Construction Impeded . | . . . Haulers Reinforced . | . . . Active Scanning Responses . | . . . Cargo Convoy Interrupts . | . . . Stealth | -11 -10 -10 --------- Run | Yrd Mat Min Distress Signals 3 | . 3 . Communications Jammed . | . . . Distress Signals . | . . . Times Spotted 32 | . 22 10 Peak Tracking Total 9 | . 9 5 Tactical Retreats 4 | . 4 . Traps | -11 -10 -10 ------- Run | Yrd Mat Min Traps Triggered 3 | . 3 . Indirectly . | . . . Trap Hack Attempts . | . . . Triggered . | . . . Disarmed . | . . . Reprogrammed . | . . . Reused . | . . . Traps Extracted . | . . . Installed . | . . . Triggered . | . . . Machines | -11 -10 -10 ---------- Run | Yrd Mat Min Machines Disabled . | . . . Max in Single Turn . | . . . Machines Repaired . | . . . Machines Dismantled . | . . . Machines Sabotaged . | . . . Overloaded Fab Kills . | . . . Hacking | -11 -10 -10 --------- Run | Yrd Mat Min Machines Accessed 11 | . 9 2 Terminals 6 | . 6 . Fabricators . | . . . Repair Stations 1 | . 1 . Recycling Units 2 | . 2 . Scanalyzers . | . . . Garrison Access . | . . . Total Hacks 28 | . 26 2 Successful 16 | . 14 2 Failed 12 | . 12 . Catastrophic . | . . . Database Lockouts . | . . . Manual 17 | . 17 . Terminals 18 | . 18 . Fabricators . | . . . Repair Stations 5 | . 5 . Recycling Units 3 | . 3 . Scanalyzers . | . . . Garrison Access . | . . . Terminal Hacks 5 | . 3 2 Open Door 2 | . . 2 Terminal Index 1 | . 1 . Zone Layout 2 | . 2 . Fabricator Hacks . | . . . Repair Station Hacks 3 | . 3 . Scan Component 2 | . 2 . Repair 1 | . 1 . Recycling Unit Hacks 3 | . 3 . Report Inventory 2 | . 2 . Retrieve Components 1 | . 1 . Scanalyzer . | . . . Garrison Access Hacks . | . . . Unauthorized Hacks 5 | . 5 . Terminals 5 | . 5 . Botnet 5 | . 5 . Fabricators . | . . . Repair Stations . | . . . Recycling Units . | . . . Scanalyzers . | . . . Garrison Access . | . . . Data Cores Recovered . | . . . Used . | . . . Hacking Detections 8 | . 8 . Full Trace Events . | . . . Feedback Events . | . . . Feedback Blocked . | . . . Robot Schematics Acquired . | . . . Robots Built . | . . . Authchips . | . . . Time . | . . . Total Robot Build Rating . | . . . Part Schematics Acquired . | . . . Parts Built . | . . . Authchips . | . . . Time . | . . . Total Part Build Rating . | . . . Parts Repaired 1 | . 1 . Time 38 | . 38 . Parts Recycled . | . . . Recycled Matter . | . . . Retrieved Matter . | . . . Retrieved Components 8 | . 8 . Parts Scanalyzed . | . . . Part Schematics Acquired . | . . . Parts Damaged . | . . . Bothacking | -11 -10 -10 ------------ Run | Yrd Mat Min Used RIF Installer . | . . . Robots Hacked . | . . . Non-combat . | . . . Combat . | . . . Robot Hacks Applied . | . . . Relay Couplers Released . | . . . Fabnet Peak Effective % . | . . . Robots Rewired . | . . . Allies Hacked . | . . . Hacks Repelled . | . . . Allies | -11 -10 -10 -------- Run | Yrd Mat Min Total Allies 3 | . . 3 Largest Group 3 | . . 3 Highest-Rated Group 40 | . . 40 Highest-Rated Ally 16 | . . 16 Total Orders . | . . . Ally Attacks 14 | . . 14 Total Damage 160 | . . 160 Kills 2 | . . 2 Allies Corrupted . | . . . Allies Melted . | . . . Intel | -11 -10 -10 ------- Run | Yrd Mat Min Robot Analysis Total . | . . . Derelict Logs Recovered . | . . . Drone Launches . | . . . Drone Recoveries . | . . . Exploration | -11 -10 -10 ------------- Run | Yrd Mat Min Turns Passed 1262 | 52 883 327 Spaces Moved 670 | 36 480 154 Core 7 | 7 . . Treads . | . . . Legs 663 | 29 480 154 Wheels . | . . . Hover . | . . . Flight . | . . . Fastest Speed 50 | 50 120 190 Average Speed 152 | 114 142 190 Slowest Speed 190 | 150 190 190 Overloaded Moves . | . . . Propulsion Burnouts . | . . . Robots Hopped . | . . . Cave-ins Triggered . | . . . Exploration Rate (%) 38 | 5 76 33 Regions Visited 2 Branch Regions 1 Pre-discovered Areas . | . . . Known Exits Taken . | . . . Unknown Exits Taken 2 | 1 1 . Scrap Searched . | . . . Spaces Dug . | . . . Terrain Destroyed 2 | . . 2 Melee . | . . . Projectile 2 | . . 2 AOE . | . . . Terrain Rammed . | . . . Walls Destroyed . | . . . Machines Disabled . | . . . Actions | -11 -10 -10 --------- Run | Yrd Mat Min Total 817 | 43 597 177 Wait 40 | . 40 . Move 668 | 35 479 154 Hop . | . . . Pick Up 18 | 2 9 7 Fast Attach 10 | 6 4 . Attach 3 | . 2 1 Detach 1 | . 1 . Swap 9 | . 6 3 Drop 6 | . 2 4 Fire 53 | . 47 6 Melee . | . . . Ram . | . . . Kick 9 | . 7 2 Crush . | . . . Escape Stasis . | . . . Rewire . | . . . Trap . | . . . Miscellaneous . | . . . Route ------- -11/Scrapyard -10/Materials (discovered 3 exits: [*Mat x2] / *Min) -10/Mines (discovered 1 exit: [*Mat]) History --------- Turn | Location | Event 12 | -11/Scrapyard | Discovered new exit (range 15) 53 | -11/Scrapyard | Entered Materials 301 | -10/Materials | Build established: Mutant 372 | -10/Materials | Discovered new exit (range 13) 401 | -10/Materials | Discovered new exit (range 16) 519 | -10/Materials | Core integrity fell below 50% 656 | -10/Materials | Build established: Scavenger-Mutant 668 | -10/Materials | Repaired Lgt. Nuclear Core 885 | -10/Materials | Discovered new exit (range 11) 936 | -10/Materials | Entered Mines 940 | -10/Mines | YI-UF0 nonchalantly dropped a Grenade Launcher on the ground 968 | -10/Mines | Met a Derelict shopkeep closing up shop 1056 | -10/Mines | Assisted by bots powering up and referring to "LRC-V3" 1108 | -10/Mines | A weapon hastily lodged in a ceiling crevice suddenly fell to the ground 1117 | -10/Mines | Assembled infested the area 1149 | -10/Mines | Found the Drone Emporium 1189 | -10/Mines | Lost 3 allies 1232 | -10/Mines | Discovered new exit (range 9) 1246 | -10/Mines | Core integrity fell below 20% 1263 | -10/Mines | Destroyed by S-10 Pest with Light Assault Rifle Last Messages --------------- opened my Drone Emporium yet but am totally ready to tell them where they can shove that C&D." 01151_ HG-OWQ(g): "I'm a fan of the free market. Free drones for all! No strings attached!" 01160_ D-53 Grenadier Imp. Light Armor Plating severed. 01163_ D-53 Grenadier destroyed. 01164_ The unstable cave ceiling collapses. 01171_ Kicked R-06 Scavenger out of the way. 01186_ R-06 Scavenger destroyed. 01190_ Acquired 31 matter. 01226_ Kicked K-01 Serf. 01230_ Acquired 54 matter. 01232_ EXIT=FOUND 01233_ Acquired 56 matter. 01241_ K-01 Serf destroyed. 01251_ R-06 Scavenger collects Wheel. 01255_ S-10 Pest destroyed. 01255_ R-06 Scavenger collects Flight Unit. Map ----- +----------------------------------------------------+ | ???## ##????# X # X | | ???# #???## ### ####### | | ???# ##### #?# #?????# | | ???## #### #####?# | | ????## ## #### #?# ##### | | ?????###### ### ### #?# ##??# | | ??????????## ##?## ##?# ### ##?## | | ???????????####???####??# ## #??### | | ????????????????????????### ## #????? | | ??????????????????????????# ## ##??## | | ??????????????????????????######### #### | | ??????????????????????????????????# | | ??????????????????????????????????# | | ??????????????????????????????????## | | ???????????????????????????????????# | | ???????????????????????????????????# | | ???????????????????????????????????## | | ????????????????????????????????????# | | ???????????????????????###??????????# | | ??????????????????????? #??????##### | | ??????????##???????????# #?###### [* | | ?????????## ###???????# #?# # | | ?????????# #?????## ### #### ###### ### | | ?????????# ###??# #?# #???# #?? | | ?????????# s r;### ####### #??# #?? | | ??????# % % s[@ #????# #??# #?? | | ?????????# g% #######???# #??# ?? | | ?????????# < ##?????????# #??####?? | | ?????????# #???????????## ##???????? | | ?????????# ###?????????????## ###????????? | | ?????????#$#??????????????????###???????????? | | ???????? ??????????????????????????????????? | | ??????# #???????????????????????????????????? | | ??????#?????????????????????????????????????? | | ????????????????????????????????????????????? | | ????????????????????????????????????????????? | | ????????????????????????????????????????????? | | ????????????????????????????????????????????? | | ????????????????????????????????????????????? | | ????????????????????????????????????????????? | | ????????????????????????????????????????????? | | ????????????????????????????????????????????? | | ????????????????????????????????????????????? | | ????????????????????????????????????????????? | | ????????????????????????????????????????????? | | ????????????????????????????????????????????? | | ????????????????????????????????????????????? | | ????????????????????????????????????????????? | | ????????????????????????????????????????????? | | ????????????????????????????????????????????? | +----------------------------------------------------+ Best States ------------- Heat Dissipation 35 Energy Generation 14 Energy Capacity 250 Matter Stores 300 Matter Capacity 300 Sight Range 16 Terrain Scan Density 10 Additional Mass Support 6 Evasion (%) 55 Defensive Hacking 10 Item Schematics ----------------- None Robot Schematics ------------------ None Fabricated ------------ Nothing Alien Tech Used ----------------- None Achievements -------------- None Challenges ------------ None Game ------ Seed ArcFrostMatter Manual? 0 Play Time 00:15:36 Cumulative 43.8 hours Start 2025.01.11 @ 15:44:21 End 2025.01.11 @ 15:57:00 Sessions 1 Manual Loads 0 Difficulty Rogue Special Mode None Game No. 34 Rogue 28 Adventurer 6 Explorer 0 Win Type - Total 0 Types 0/0/0/0/0/0/0/0/0 Lore% 20 Gallery% 32 Achievement% 29 Wizard Run 0 Options --------- Layout 1 ASCII 0 Keyboard 0 Movement Arrows Keybinds 0 Fullscreen 2 Font 24/Smallcaps Map View 50x35 Zoom Use 0% Tactical HUD 1 Map Filters NONE Filters NONE Steam 1 RUN: 265ec92c-a7cb-467a-b622-6866bd163a3f